bitfinex/quotes_SOLUSD_20230402
["timestamp","ask_amount","ask_price","bid_price","bid_amount"]
[1680442117290,33.9446271,20.808,20.807,20.0]
[1680442117489,33.9446271,20.808,20.807,17.0]
[1680442117908,33.9446271,20.808,20.806,17.0]
[1680442118112,33.9446271,20.808,20.807,20.0]
[1680442118297,33.9446271,20.808,20.807,37.0]
[1680442118816,33.9446271,20.808,20.807,20.0]
[1680442119018,33.9446271,20.808,20.804,20.0]
[1680442119194,33.9446271,20.808,20.805,17.0]
[1680442119396,33.9446271,20.808,20.806,20.0]
[1680442119597,33.9446271,20.808,20.807,17.0]
[1680442120301,33.9446271,20.808,20.799,10.0]
[1680442120699,33.641,20.808,20.799,10.0]
[1680442121102,33.641,20.808,20.799,17.17217194]
[1680442122310,33.641,20.808,20.801,10.0]
[1680442122503,33.641,20.808,20.802,17.0]
[1680442122700,0.3033073,20.807,20.802,17.0]
[1680442123913,0.3033073,20.807,20.801,10.0]
[1680442124214,0.3033073,20.807,20.802,17.0]
[1680442124410,0.3033073,20.807,20.801,10.0]
[1680442124710,0.3033073,20.807,20.802,20.0]
[1680442125915,0.3033073,20.807,20.803,17.0]
[1680442126516,33.641,20.808,20.803,17.0]
[1680442126922,33.641,20.808,20.802,20.0]
[1680442127602,0.30298747,20.806,20.802,20.0]
[1680442128608,33.641,20.808,20.802,20.0]
[1680442129111,33.641,20.808,20.803,17.0]
[1680442131723,33.641,20.808,20.803,17.0]
[1680442133821,33.641,20.808,20.803,24.17217194]
[1680442135020,0.3033073,20.807,20.803,24.17217194]
[1680442136108,33.641,20.808,20.803,24.17217194]
[1680442138909,0.3033073,20.807,20.803,24.17217194]
[1680442139919,33.641,20.808,20.803,24.17217194]
[1680442143021,0.3033073,20.807,20.803,24.17217194]
[1680442143213,0.3033073,20.807,20.803,7.17217194]
[1680442143934,33.641,20.808,20.803,7.17217194]
[1680442145324,33.641,20.808,20.804,17.0]
[1680442145522,33.641,20.808,20.805,10.0]
[1680442145829,33.641,20.808,20.806,17.0]
[1680442146016,33.641,20.808,20.806,24.17217194]
[1680442146335,33.641,20.808,20.807,7.17217194]
[1680442146629,33.641,20.808,20.807,24.17217194]
[1680442147028,33.9446271,20.808,20.807,24.17217194]
[1680442149957,33.9446271,20.808,20.807,44.17217194]
[1680442157652,33.9446271,20.808,20.807,20.0]
[1680442158150,33.9446271,20.808,20.803,10.0]
[1680442158442,33.9446271,20.808,20.804,27.17217194]
[1680442158849,33.9446271,20.808,20.805,17.0]
[1680442159049,33.9446271,20.808,20.806,20.0]
[1680442166557,33.9446271,20.808,20.807,7.17217194]
[1680442166734,33.9446271,20.808,20.807,24.17217194]
[1680442166934,33.9446271,20.808,20.807,44.17217194]
[1680442174551,33.9446271,20.808,20.807,74.17217194]
[1680442174969,33.641,20.808,20.807,74.17217194]
[1680442180567,33.641,20.808,20.807,44.17217194]
[1680442180948,33.9446271,20.808,20.807,44.17217194]
[1680442186267,33.9446271,20.808,20.807,27.17217194]
[1680442186475,33.9446271,20.808,20.807,110.24598208]
[1680442186668,33.9446271,20.808,20.807,127.24598208]
[1680442187161,33.641,20.808,20.807,90.07381014]
[1680442187373,33.641,20.808,20.807,20.0]
[1680442187565,33.641,20.808,20.804,20.0]
[1680442187772,33.641,20.808,20.805,30.0]
[1680442187967,33.641,20.808,20.806,20.0]
[1680442188476,33.641,20.808,20.804,20.0]
[1680442188773,33.641,20.808,20.806,7.17217194]
[1680442188969,33.641,20.808,20.807,20.0]
[1680442189173,33.641,20.808,20.802,10.0]
[1680442189358,33.641,20.808,20.802,17.17217194]
[1680442190267,33.641,20.808,20.804,10.0]
[1680442190478,33.641,20.808,20.805,17.0]
[1680442190661,33.641,20.808,20.805,24.17217194]
[1680442190970,0.3033073,20.807,20.806,20.0]
[1680442191155,0.3033073,20.807,20.806,37.0]
[1680442191975,33.641,20.808,20.806,37.0]
[1680442192179,33.641,20.808,20.807,17.0]
[1680442192372,33.641,20.808,20.807,37.0]
[1680442193078,33.641,20.808,20.807,20.0]
[1680442193263,33.641,20.808,20.806,20.0]
[1680442196379,0.3033073,20.807,20.806,20.0]
[1680442196580,0.3033073,20.807,20.806,37.0]
[1680442197472,33.641,20.808,20.806,37.0]
[1680442198479,33.641,20.808,20.806,20.0]
[1680442198981,33.641,20.808,20.806,7.17217194]
[1680442199280,33.641,20.808,20.807,20.0]
[1680442199660,33.641,20.808,20.807,27.17217194]
[1680442200183,33.641,20.808,20.807,20.0]
[1680442200366,33.9446271,20.808,20.807,20.0]
[1680442200568,33.9446271,20.808,20.803,7.17217194]
[1680442200782,33.9446271,20.808,20.804,37.0]
[1680442201484,33.641,20.808,20.805,7.17217194]
[1680442201875,33.641,20.808,20.806,20.0]
[1680442202389,0.3033073,20.807,20.806,20.0]
[1680442203285,33.641,20.808,20.806,20.0]
[1680442203286,33.641,20.808,20.806,37.0]
[1680442203480,33.641,20.808,20.806,20.0]
[1680442203882,33.641,20.808,20.805,20.0]
[1680442204083,33.641,20.808,20.802,20.0]
[1680442204581,33.641,20.808,20.793,7.17217194]
[1680442204777,33.641,20.808,20.79,84.4078]
[1680442204778,33.641,20.808,20.797,10.0]
[1680442205474,0.3033073,20.807,20.796,30.0]
[1680442205683,0.3033073,20.807,20.795,24.172172]
[1680442205684,10.3033073,20.807,20.795,24.172172]
[1680442207273,10.3033073,20.807,20.797,10.0]
[1680442207478,10.3033073,20.807,20.796,20.0]
[1680442208489,0.3033073,20.807,20.796,20.0]
[1680442208890,0.3033073,20.807,20.798,10.0]
[1680442209290,0.3033073,20.807,20.797,17.0]
[1680442209796,0.3033073,20.807,20.798,10.0]
[1680442210382,0.3033073,20.807,20.8,10.0]
[1680442210583,0.3033073,20.807,20.799,17.0]
[1680442210894,0.3033073,20.807,20.797,10.0]
[1680442211199,0.3033073,20.807,20.799,10.0]
[1680442211389,0.3033073,20.807,20.798,17.0]
[1680442211786,10.3033073,20.807,20.796,20.0]
[1680442212203,9.3033073,20.807,20.796,20.0]
[1680442212381,0.30298747,20.806,20.796,20.0]
[1680442213400,0.68164184,20.806,20.796,20.0]
[1680442216095,0.68164184,20.806,20.788,64.57523764]
[1680442216284,0.68164184,20.806,20.788,10.0]
[1680442216789,17.18164184,20.806,20.791,10.0]
[1680442216990,10.0,20.805,20.791,10.0]
[1680442217378,10.68084219,20.805,20.79,17.0]
[1680442217781,10.68084219,20.805,20.788,10.0]
[1680442218007,10.68084219,20.805,20.79,10.0]
[1680442218200,10.0,20.803,20.788,7.17217194]
[1680442218700,10.0,20.803,20.787,10.0]
[1680442219682,10.0,20.803,20.786,47.55850556]
[1680442219880,10.0,20.803,20.788,10.0]
[1680442223798,17.0,20.802,20.788,10.0]
[1680442223991,10.0,20.801,20.787,30.0]
[1680442224318,10.0,20.801,20.787,20.0]
[1680442226294,10.0,20.801,20.788,17.0]
[1680442226601,10.0,20.801,20.789,10.0]
[1680442226798,10.0,20.801,20.788,10.0]
[1680442227001,10.0,20.801,20.787,20.0]
[1680442228404,10.0,20.801,20.789,10.0]
[1680442228605,10.0,20.801,20.788,19.231376]
[1680442238516,10.0,20.803,20.788,19.231376]
[1680442238809,10.0,20.805,20.789,10.0]
[1680442239015,10.0,20.803,20.789,10.0]
[1680442240015,16.817,20.813,20.789,17.17217194]
[1680442240399,16.817,20.813,20.79,17.0]
[1680442240815,16.817,20.813,20.791,10.0]
[1680442240816,10.0,20.807,20.791,10.0]
[1680442241114,10.0,20.807,20.793,10.0]
[1680442241310,10.0,20.807,20.794,17.0]
[1680442241499,10.0,20.807,20.795,10.0]
[1680442242011,16.817,20.813,20.796,17.0]
[1680442242311,16.817,20.813,20.797,10.0]
[1680442242506,16.817,20.813,20.798,17.0]
[1680442242707,16.817,20.813,20.799,10.0]
[1680442245802,10.0,20.811,20.797,10.0]
[1680442246002,16.817,20.813,20.799,10.0]
[1680442246418,16.817,20.813,20.798,17.0]
[1680442246605,10.0,20.811,20.795,10.0]
[1680442246926,10.0,20.811,20.796,20.0]
[1680442247916,10.0,20.811,20.797,10.0]
[1680442252317,10.0,20.811,20.796,20.0]
[1680442252525,10.0,20.811,20.798,10.0]
[1680442253623,10.0,20.811,20.795,10.0]
[1680442253828,10.0,20.811,20.797,10.0]
[1680442254218,114.4394,20.812,20.797,10.0]
[1680442254421,114.4394,20.812,20.799,10.0]
[1680442254925,114.4394,20.812,20.801,10.0]
[1680442255627,114.4394,20.812,20.803,10.0]
[1680442256830,114.4394,20.812,20.801,10.0]
[1680442257025,16.817,20.813,20.803,10.0]
[1680442257420,16.817,20.813,20.801,10.0]
[1680442257731,16.817,20.813,20.803,10.0]
[1680442257921,16.817,20.813,20.801,10.0]
[1680442258227,16.817,20.813,20.803,10.0]
[1680442258724,16.817,20.813,20.799,10.0]
[1680442258915,16.817,20.813,20.801,10.0]
[1680442259609,16.817,20.813,20.803,10.0]
[1680442259823,16.817,20.813,20.801,10.0]
[1680442260027,118.1935,20.812,20.801,10.0]
[1680442261129,16.817,20.813,20.801,10.0]
[1680442261428,16.817,20.813,20.803,10.0]
[1680442261633,16.817,20.813,20.804,17.0]
[1680442261833,16.817,20.813,20.803,10.0]
[1680442262015,16.817,20.813,20.801,10.0]
[1680442262215,16.817,20.813,20.803,10.0]
[1680442263027,16.817,20.813,20.802,17.0]
[1680442263232,16.817,20.813,20.788,118.4378]
[1680442263425,110.7708,20.812,20.788,166.1778]
[1680442263622,110.7708,20.812,20.788,118.4378]
[1680442263818,110.7708,20.812,20.789,80.80078145]
[1680442264129,110.7708,20.812,20.797,17.17217194]
[1680442264428,16.817,20.813,20.797,17.17217194]
[1680442265329,16.817,20.813,20.799,10.0]
[1680442265635,16.817,20.813,20.8,44.17217194]
[1680442265811,16.817,20.813,20.8,134.59526995]
[1680442266013,16.817,20.813,20.801,72.27752097]
[1680442266229,33.641,20.808,20.802,37.0]
[1680442266424,16.817,20.813,20.802,37.0]
[1680442266425,16.817,20.813,20.802,109.27752097]
[1680442266609,10.0,20.822,20.803,62.27752097]
[1680442266813,33.641,20.808,20.804,37.0]
[1680442267019,16.817,20.813,20.804,99.27752097]
[1680442267238,10.0,20.822,20.805,72.27752097]
[1680442267239,33.641,20.808,20.805,72.27752097]
[1680442267430,16.817,20.813,20.806,37.0]
[1680442267625,16.817,20.813,20.807,10.0]
[1680442267829,16.817,20.813,20.808,17.0]
[1680442268035,16.817,20.813,20.809,10.0]
[1680442268335,16.817,20.813,20.811,10.0]
[1680442268518,16.817,20.813,20.812,17.0]
[1680442268918,16.817,20.813,20.812,24.17217194]
[1680442270519,16.817,20.813,20.811,10.0]
[1680442270928,16.817,20.813,20.812,20.0]
[1680442271120,16.817,20.813,20.812,27.17217194]
[1680442271321,20.0,20.824,20.813,10.0]
[1680442271521,20.0,20.824,20.815,10.0]
[1680442271721,20.0,20.824,20.817,10.0]
[1680442271932,20.0,20.824,20.818,20.0]
[1680442272134,20.0,20.824,20.819,10.0]
[1680442272842,20.0,20.824,20.821,10.0]
[1680442273026,20.0,20.824,20.819,10.0]
[1680442273636,20.0,20.824,20.82,17.0]
[1680442273825,10.0,20.833,20.821,10.0]
[1680442274140,10.0,20.837,20.821,10.0]
[1680442274743,10.0,20.833,20.821,10.0]
[1680442275741,10.0,20.837,20.821,10.0]
[1680442275926,10.0,20.837,20.823,10.0]
[1680442276127,10.0,20.837,20.824,17.0]
[1680442276728,114.853,20.839,20.824,17.0]
[1680442277040,114.853,20.839,20.825,10.0]
[1680442277830,10.0,20.838,20.824,17.0]
[1680442279245,114.853,20.839,20.824,17.0]
[1680442282651,114.853,20.839,20.823,10.0]
[1680442282946,114.853,20.839,20.825,10.0]
[1680442283253,20.0,20.866,20.826,17.0]
[1680442283551,20.0,20.866,20.827,30.0]
[1680442283552,7.76855755,20.861,20.827,30.0]
[1680442283751,144.2,20.86,20.828,17.0]
[1680442283930,7.76855755,20.861,20.828,17.0]
[1680442283931,7.76855755,20.861,20.829,30.0]
[1680442284135,110.1457,20.844,20.829,30.0]
[1680442284454,110.1457,20.844,20.83,10.0]
[1680442285842,17.0,20.84,20.829,30.0]
[1680442286042,17.0,20.84,20.829,20.0]
[1680442286235,10.0,20.839,20.829,20.0]
[1680442286429,10.0,20.839,20.825,20.0]
[1680442286630,10.0,20.84,20.826,10.0]
[1680442286846,10.0,20.843,20.827,20.0]
[1680442287046,10.0,20.843,20.828,10.0]
[1680442287349,110.1457,20.844,20.83,10.0]
[1680442287557,110.1457,20.844,20.831,17.0]
[1680442287729,110.1457,20.844,20.832,10.0]
[1680442288132,110.1457,20.844,20.834,10.0]
[1680442288751,110.1457,20.844,20.833,17.0]
[1680442288926,110.1457,20.844,20.832,10.0]
[1680442289756,110.1457,20.844,20.833,17.0]
[1680442290336,445.462836,20.847,20.833,17.0]
[1680442290537,445.462836,20.847,20.834,27.17217194]
[1680442290735,19.205776,20.847,20.835,17.0]
[1680442290933,19.205776,20.847,20.836,20.0]
[1680442291149,33.587,20.841,20.837,17.0]
[1680442291333,33.587,20.841,20.838,20.0]
[1680442291539,33.587,20.841,20.839,17.0]
[1680442291739,33.587,20.841,20.84,10.0]
[1680442291944,33.587,20.841,20.84,34.17217194]
[1680442292539,29.785,20.841,20.84,34.17217194]
[1680442295049,33.587,20.841,20.84,34.17217194]
[1680442295649,33.587,20.841,20.84,24.17217194]
[1680442296460,33.587,20.841,20.84,7.17217194]
[1680442296948,33.587,20.841,20.838,20.0]
[1680442297146,33.587,20.841,20.837,7.17217194]
[1680442297353,33.587,20.841,20.838,20.0]
[1680442298071,33.587,20.841,20.832,10.0]
[1680442298359,33.587,20.841,20.834,10.0]
[1680442298541,33.587,20.841,20.835,20.0]
[1680442298740,33.587,20.841,20.836,10.0]
[1680442299057,33.587,20.841,20.838,10.0]
[1680442299359,33.587,20.841,20.839,17.0]
[1680442299543,33.587,20.841,20.84,10.0]
[1680442299743,33.587,20.841,20.84,34.17217194]
[1680442302062,33.587,20.841,20.84,24.17217194]
[1680442302280,33.587,20.841,20.84,7.17217194]
[1680442303648,33.587,20.841,20.84,24.17217194]
[1680442305454,33.587,20.841,20.84,44.17217194]
[1680442306142,33.587,20.841,20.84,74.17217194]
[1680442308062,33.587,20.841,20.84,129.27752097]
[1680442309966,33.587,20.841,20.84,112.27752097]
[1680442310255,33.587,20.841,20.84,57.17217194]
[1680442311662,19.205776,20.847,20.84,57.17217194]
[1680442311868,116.832,20.9,20.866,4.4411]
[1680442312042,116.832,20.9,20.866,43.1986]
[1680442312043,10.0,20.887,20.866,43.1986]
[1680442312252,10.0,20.887,20.867,10.0]
[1680442312449,10.0,20.887,20.867,17.17217194]
[1680442312652,10.0,20.887,20.867,7.17217194]
[1680442312855,10.0,20.887,20.868,27.0]
[1680442313265,10.0,20.887,20.868,17.0]
[1680442313465,10.0,20.887,20.868,7.17217194]
[1680442313663,10.0,20.887,20.869,17.0]
[1680442314042,10.0,20.887,20.869,24.17217194]
[1680442316869,10.0,20.887,20.869,7.17217194]
[1680442317167,10.0,20.887,20.866,13.1986]
[1680442317366,10.0,20.885,20.867,20.0]
[1680442317870,10.0,20.883,20.866,13.1986]
[1680442318165,10.0,20.881,20.866,13.1986]
[1680442318369,10.0,20.879,20.866,13.1986]
[1680442320356,10.0,20.877,20.866,13.1986]
[1680442323372,10.0,20.875,20.866,13.1986]
[1680442323569,10.0,20.873,20.866,13.1986]
[1680442323970,10.0,20.871,20.866,13.1986]
[1680442324471,10.0,20.871,20.855,6.77529799]
[1680442324678,17.0,20.87,20.855,6.77529799]
[1680442324875,117.8587,20.869,20.855,6.77529799]
[1680442325066,27.0,20.868,20.855,6.77529799]
[1680442325373,10.0,20.868,20.855,6.77529799]
[1680442325872,10.0,20.868,20.856,17.0]
[1680442326966,117.8587,20.869,20.857,10.0]
[1680442327377,117.8587,20.869,20.858,44.17217194]
[1680442327581,16.766,20.875,20.859,10.0]
[1680442327772,16.766,20.875,20.86,17.0]
[1680442327974,16.766,20.875,20.861,10.0]
[1680442328277,16.766,20.875,20.862,17.0]
[1680442328485,16.766,20.875,20.863,10.0]
[1680442328780,16.766,20.875,20.864,17.0]
[1680442328979,16.766,20.875,20.865,10.0]
[1680442329182,16.766,20.875,20.866,17.0]
[1680442330283,16.766,20.875,20.868,10.0]
[1680442330489,16.766,20.875,20.869,37.0]
[1680442330782,16.766,20.875,20.869,44.17217194]
[1680442330989,16.766,20.875,20.87,17.17217194]
[1680442331176,16.766,20.875,20.871,17.0]
[1680442334077,16.766,20.875,20.872,17.17217194]
[1680442334381,16.766,20.875,20.874,10.0]
[1680442334586,16.766,20.875,20.874,27.0]
[1680442335086,16.766,20.875,20.874,17.0]
[1680442336779,16.766,20.875,20.873,7.17217194]
[1680442337186,16.766,20.875,20.869,20.0]
[1680442337484,16.766,20.875,20.87,17.0]
[1680442337990,12.766,20.875,20.87,17.0]
[1680442338576,12.766,20.875,20.866,20.0]
[1680442338781,16.766,20.875,20.865,10.0]
[1680442338982,16.766,20.875,20.866,50.0]
[1680442339599,16.766,20.875,20.866,27.17217194]
[1680442340884,16.766,20.875,20.867,17.0]
[1680442341081,16.766,20.875,20.868,20.0]
[1680442343496,16.766,20.875,20.867,20.0]
[1680442346583,16.766,20.875,20.868,7.17217194]
[1680442346981,16.766,20.875,20.869,20.0]
[1680442348496,16.766,20.875,20.867,10.0]
[1680442348701,16.766,20.875,20.868,37.0]
[1680442349785,16.766,20.875,20.869,10.0]
[1680442350100,16.766,20.875,20.87,17.0]
[1680442350401,16.766,20.875,20.869,17.17217194]
[1680442350613,16.766,20.875,20.869,7.17217194]
[1680442352080,16.766,20.875,20.868,20.0]
[1680442352382,16.766,20.875,20.865,10.0]
[1680442352595,16.766,20.875,20.867,10.0]
[1680442352783,16.766,20.875,20.868,20.0]
[1680442353384,16.766,20.875,20.866,19.162729]
[1680442357500,10.0,20.874,20.866,19.162729]
[1680442357804,10.0,20.872,20.866,19.162729]
[1680442358196,10.0,20.87,20.857,7.17217194]
[1680442358391,10.0,20.87,20.859,10.0]
[1680442358589,10.0,20.87,20.858,20.0]
[1680442359708,10.0,20.872,20.858,20.0]
[1680442359883,110.4746,20.889,20.859,10.0]
[1680442360395,110.4746,20.889,20.861,10.0]
[1680442360797,110.4746,20.889,20.862,7.17217194]
[1680442361305,10.0,20.876,20.861,10.0]
[1680442361986,10.0,20.876,20.861,17.17217194]
[1680442362400,110.4746,20.889,20.861,17.17217194]
[1680442362784,10.0,20.876,20.861,17.17217194]
[1680442363801,17.0,20.874,20.861,7.17217194]
[1680442363997,10.0,20.873,20.859,10.0]
[1680442364214,17.0,20.872,20.859,17.17217194]
[1680442364907,111.9595,20.877,20.861,10.0]
[1680442365297,111.9595,20.877,20.861,17.17217194]
[1680442365696,111.9595,20.877,20.863,10.0]
[1680442367708,111.9595,20.877,20.861,17.17217194]
[1680442368013,10.0,20.876,20.861,17.17217194]
[1680442368408,10.0,20.876,20.861,7.17217194]
[1680442368616,10.0,20.876,20.863,10.0]
[1680442368913,10.0,20.876,20.864,6.77237537]
[1680442370021,10.0,20.874,20.864,6.77237537]
[1680442371409,10.0,20.876,20.864,6.77237537]
[1680442377336,16.766,20.875,20.865,17.0]
[1680442377620,16.766,20.875,20.866,6.77172624]
[1680442378206,16.766,20.875,20.864,7.17217194]
[1680442379717,10.0,20.874,20.864,7.17217194]
[1680442380725,10.0,20.874,20.859,17.17217194]
[1680442380909,10.0,20.874,20.861,10.0]
[1680442381408,10.0,20.874,20.862,7.17217194]
[1680442381914,16.766,20.875,20.862,7.17217194]
[1680442382427,16.766,20.875,20.864,10.0]
[1680442382608,16.766,20.875,20.865,17.0]
[1680442383403,16.766,20.875,20.864,10.0]
[1680442383614,16.766,20.875,20.865,17.0]
[1680442385308,16.766,20.875,20.866,27.17217194]
[1680442385510,16.766,20.875,20.867,27.0]
[1680442385720,16.766,20.875,20.868,10.0]
[1680442385925,16.766,20.875,20.869,37.0]
[1680442386117,16.766,20.875,20.869,44.17217194]
[1680442386525,16.766,20.875,20.87,7.17217194]
[1680442389924,16.766,20.875,20.869,20.0]
[1680442390126,16.766,20.875,20.867,7.17217194]
[1680442390327,16.766,20.875,20.869,10.0]
[1680442390528,16.766,20.875,20.868,17.0]
[1680442390713,16.766,20.875,20.869,20.0]
[1680442391322,16.766,20.875,20.87,17.0]
[1680442393627,16.766,20.875,20.869,27.17217194]
[1680442394012,16.766,20.875,20.869,20.0]
[1680442394423,16.766,20.875,20.868,10.0]
[1680442394622,16.766,20.875,20.87,10.0]
[1680442394911,16.766,20.875,20.869,17.0]
[1680442395932,16.766,20.875,20.87,10.0]
[1680442396119,16.766,20.875,20.871,17.0]
[1680442396427,16.766,20.875,20.872,10.0]
[1680442396630,16.766,20.875,20.874,10.0]
[1680442396835,16.766,20.875,20.874,17.0]
[1680442397422,108.5613,20.888,20.874,30.0]
[1680442397642,108.5613,20.888,20.875,37.0]
[1680442397823,108.5613,20.888,20.876,10.0]
[1680442398017,108.5613,20.888,20.878,10.0]
[1680442398218,108.5613,20.888,20.879,20.0]
[1680442398418,108.5613,20.888,20.879,37.0]
[1680442399332,19.167831,20.892,20.879,37.0]
[1680442400340,19.167831,20.892,20.879,20.0]
[1680442400533,19.167831,20.892,20.878,10.0]
[1680442400737,19.167831,20.892,20.879,20.0]
[1680442400930,19.167831,20.892,20.877,20.0]
[1680442401136,19.167831,20.892,20.878,17.0]
[1680442401342,19.167831,20.892,20.879,20.0]
[1680442401642,0.34467984,20.882,20.879,20.0]
[1680442403433,0.34467984,20.882,20.871,61.50748792]
[1680442403636,0.34467984,20.882,20.855,144.2]
[1680442403637,0.34467984,20.882,20.872,30.0]
[1680442404441,0.34467984,20.882,20.868,10.0]
[1680442404645,0.34467984,20.882,20.87,10.0]
[1680442405545,0.68935967,20.882,20.871,61.50748792]
[1680442405724,0.68935967,20.882,20.872,10.0]
[1680442405928,0.68935967,20.882,20.874,10.0]
[1680442406142,0.68935967,20.882,20.875,17.0]
[1680442406443,0.34467984,20.882,20.875,17.0]
[1680442407361,0.34467984,20.882,20.873,17.0]
[1680442407535,0.34467984,20.882,20.873,10.0]
[1680442407738,0.34467984,20.882,20.874,17.0]
[1680442408045,0.34467984,20.882,20.872,30.0]
[1680442408246,10.34467984,20.882,20.854,589.0]
[1680442408545,10.34467984,20.882,20.866,10.0]
[1680442408929,10.34467984,20.882,20.868,10.0]
[1680442409131,10.34467984,20.882,20.869,20.0]
[1680442409827,10.34467984,20.882,20.868,10.0]
[1680442410030,0.34467984,20.882,20.869,20.0]
[1680442410231,0.34467984,20.882,20.87,27.0]
[1680442410631,0.34467984,20.882,20.87,17.0]
[1680442410835,10.34467984,20.882,20.87,17.0]
[1680442411432,10.34467984,20.882,20.869,20.0]
[1680442411654,10.34467984,20.882,20.868,10.0]
[1680442411944,10.34467984,20.882,20.869,20.0]
[1680442412543,10.68935967,20.882,20.869,20.0]
[1680442412750,10.0,20.88,20.869,20.0]
[1680442412929,10.0,20.88,20.868,10.0]
[1680442413131,10.0,20.88,20.869,20.0]
[1680442413745,10.0,20.88,20.868,10.0]
[1680442413947,10.0,20.88,20.869,20.0]
[1680442414452,10.0,20.88,20.868,10.0]
[1680442414650,10.0,20.88,20.869,20.0]
[1680442415454,10.0,20.88,20.868,10.0]
[1680442415747,10.0,20.88,20.869,20.0]
[1680442416061,10.0,20.88,20.868,10.0]
[1680442416346,0.34428464,20.881,20.87,10.0]
[1680442418250,0.34428464,20.881,20.87,17.17217194]
[1680442418441,0.34428464,20.881,20.871,17.0]
[1680442418638,0.34428464,20.881,20.872,10.0]
[1680442418840,0.34428464,20.881,20.874,10.0]
[1680442419040,0.34428464,20.881,20.876,10.0]
[1680442419340,119.3314,20.894,20.877,37.0]
[1680442420441,0.34467984,20.882,20.877,37.0]
[1680442421545,0.68935967,20.882,20.877,37.0]
[1680442422140,0.68935967,20.882,20.877,20.0]
[1680442422347,119.3314,20.894,20.878,17.0]
[1680442422548,119.3314,20.894,20.879,30.0]
[1680442422749,119.3314,20.894,20.88,17.0]
[1680442423156,10.0,20.893,20.88,17.0]
[1680442424841,10.0,20.893,20.879,20.0]
[1680442426057,10.0,20.893,20.877,10.0]
[1680442426259,10.0,20.893,20.879,10.0]
[1680442426550,10.0,20.893,20.88,17.0]
[1680442427255,10.0,20.893,20.879,10.0]
[1680442427256,10.0,20.893,20.877,10.0]
[1680442427462,10.0,20.893,20.879,10.0]
[1680442427846,10.0,20.893,20.878,20.0]
[1680442428049,10.0,20.893,20.874,10.0]
[1680442428248,111.1685,20.889,20.875,50.0]
[1680442428449,10.0,20.897,20.876,10.0]
[1680442428648,10.0,20.897,20.876,34.17217194]
[1680442428851,10.0,20.897,20.878,10.0]
[1680442429153,10.0,20.897,20.88,10.0]
[1680442429347,10.0,20.897,20.882,10.0]
[1680442429548,10.0,20.897,20.88,10.0]
[1680442429763,10.0,20.897,20.881,17.0]
[1680442430147,10.0,20.897,20.881,10.0]